[Event "Asian Amateur Rapid Women 2024"]
[Site "Al Ain"]
[Date "2024.12.15"]
[Round "6.13"]
[White "Mikheeva, Vasilisa"]
[Black "Daneshpour, Aram"]
[Result "0-1"]
[ECO "D02"]
[WhiteElo "1436"]
[BlackElo "1563"]
[Annotator "NA RC"]
[PlyCount "124"]
[EventDate "2024.12.15"]
[EventType "swiss"]
[EventCountry "UAE"]
[SourceTitle "playchess.com"]
[Source "ChessBase"]
[SourceQuality "1"]
[TimeControl "900+10"]

1. d4 {[%emt 0:00:01]} d5 {[%emt 0:00:02]} 2. Nf3 {[%emt 0:00:02]} Nf6 {[%emt 0:00:02]} 3. Bf4 {[%emt 0:00:05]} c5 {[%emt 0:00:11]} 4. e3 {[%emt 0:00:02]} Nc6 {[%emt 0:00:04]} 5. c4 {[%emt 0:00:03]} dxc4 {[%emt 0:00:06]} 6. Bxc4 {[%emt 0:00:02]} Bg4 {[%emt 0:00:30]} 7. Be2 {[%emt 0:00:38]} e6 {[%emt 0:00:23]} 8. O-O {[%emt 0:00:41]} Be7 {[%emt 0:00:44]} 9. Nc3 {[%emt 0:00:22]} cxd4 {[%emt 0:00:15]} 10. exd4 {[%emt 0:00:05]} O-O {[%emt 0:01:43]} 11. h3 {[%emt 0:00:09]} Bh5 {[%emt 0:01:58]} 12. Qd2 {[%emt 0:00:27]} Bd6 {[%emt 0:00:47]} 13. Bg5 {[%emt 0:00:25]} h6 {[%emt 0:00:14]} 14. Be3 {[%emt 0:00:46]} Bb4 {[%emt 0:00:34]} 15. a3 {[%emt 0:00:12]} Ba5 {[%emt 0:00:46]} 16. b4 {[%emt 0:00:06]} Bc7 {[%emt 0:00:45]} 17. Bf4 {[%emt 0:00:19]} Bb6 {[%emt 0:01:31]} 18. Be3 {[%emt 0:00:52]} Bxf3 {[%emt 0:01:49]} 19. Bxf3 {[%emt 0:00:09]} Bxd4 {[%emt 0:00:21]} 20. Bxd4 {[%emt 0:00:11]} Nxd4 {[%emt 0:00:07]} 21. Rfd1 {[%emt 0:00:53]} Nxf3+ {[%emt 0:00:24]} 22. gxf3 {[%emt 0:00:04]} Qxd2 {[%emt 0:01:23]} 23. Rxd2 {[%emt 0:00:02]} Rac8 {[%emt 0:00:09]} 24. Ne4 {[%emt 0:00:06]} Nd5 {[%emt 0:00:59]} 25. Nd6 {[%emt 0:00:25]} Rc7 {[%emt 0:00:06]} 26. Nb5 {[%emt 0:00:13]} Rc6 {[%emt 0:01:06]} 27. Nxa7 {[%emt 0:00:51]} Rb6 {[%emt 0:00:22]} 28. Rc1 {[%emt 0:11:39]} Ra8 {[%emt 0:01:01]} 29. Rc8+ {[%emt 0:00:00]} Rxc8 {[%emt 0:00:02]} 30. Nxc8 {[%emt 0:00:00]} Ra6 {[%emt 0:00:23]} 31. Rd3 {[%emt 0:00:00]} Kf8 {[%emt 0:00:24]} 32. b5 {[%emt 0:00:00]} Ra5 {[%emt 0:00:31]} 33. Nd6 {[%emt 0:00:00]} Ke7 {[%emt 0:00:26]} 34. Nc4 {[%emt 0:00:00]} Rxb5 {[%emt 0:00:08]} 35. Ne3 {[%emt 0:00:00]} Nf4 {[%emt 0:00:17]} 36. Rc3 {[%emt 0:00:00]} Ne2+ {[%emt 0:00:01]} 37. Kf1 {[%emt 0:00:00]} Nxc3 {[%emt 0:00:04]} 38. Ke1 {[%emt 0:00:00]} Ra5 {[%emt 0:00:15]} 39. Nc4 {[%emt 0:00:00]} Ra4 {[%emt 0:00:13]} 40. Nb6 {[%emt 0:00:00]} Rxa3 {[%emt 0:00:06]} 41. Kf1 {[%emt 0:00:00]} Nd5 {[%emt 0:00:05]} 42. Nc4 {[%emt 0:00:00]} Rxf3 {[%emt 0:00:05]} 43. Kg2 {[%emt 0:00:00]} Rf4 {[%emt 0:00:11]} 44. Ne5 {[%emt 0:00:00]} Kd6 {[%emt 0:00:12]} 45. Nf3 {[%emt 0:00:00]} Rxf3 {[%emt 0:00:19]} 46. Kxf3 {[%emt 0:00:00]} b5 {[%emt 0:00:01]} 47. Ke2 {[%emt 0:00:00]} b4 {[%emt 0:00:02]} 48. Kd2 {[%emt 0:00:00]} Ke5 {[%emt 0:00:02]} 49. Ke2 {[%emt 0:00:00]} Kf4 {[%emt 0:00:02]} 50. h4 {[%emt 0:00:00]} Kg4 {[%emt 0:00:02]} 51. h5 {[%emt 0:00:00]} Kxh5 {[%emt 0:00:01]} 52. Kd2 {[%emt 0:00:00]} Kg4 {[%emt 0:00:01]} 53. Ke2 {[%emt 0:00:00]} h5 {[%emt 0:00:03]} 54. f3+ {[%emt 0:00:00]} Kf4 {[%emt 0:00:01]} 55. Kf2 {[%emt 0:00:00]} h4 {[%emt 0:00:02]} 56. Ke2 {[%emt 0:00:00]} h3 {[%emt 0:00:01]} 57. Kf2 {[%emt 0:00:00]} b3 {[%emt 0:00:01]} 58. Ke2 {[%emt 0:00:00]} b2 {[%emt 0:00:01]} 59. Kd2 {[%emt 0:00:00]} b1=Q {[%emt 0:00:06]} 60. Ke2 {[%emt 0:00:00]} Qc2+ {[%emt 0:00:01]} 61. Kf1 {[%emt 0:00:00]} Kxf3 {[%emt 0:00:09]} 62. Kg1 {[%emt 0:00:00]} Qg2# {[%emt 0:00:04]} 0-1

[Event "Asian Amateur Rapid Women 2024"]
[Site "Al Ain"]
[Date "2024.12.15"]
[Round "7.1"]
[White "Wijesuriya, G P Y"]
[Black "Sabirova, Shakhnoza"]
[Result "0-1"]
[ECO "C41"]
[WhiteElo "1867"]
[BlackElo "1903"]
[Annotator "NA RC"]
[PlyCount "94"]
[EventDate "2024.12.15"]
[EventType "swiss"]
[EventCountry "UAE"]
[SourceTitle "playchess.com"]
[Source "ChessBase"]
[SourceQuality "1"]
[TimeControl "900+10"]

1. e4 {[%emt 0:00:22]} e5 {[%emt 0:00:03]} 2. Nf3 {[%emt 0:00:02]} d6 {[%emt 0:00:11]} 3. d4 {[%emt 0:00:09]} exd4 {[%emt 0:00:02]} 4. Bc4 {[%emt 0:00:04]} Be7 {[%emt 0:00:10]} 5. Qxd4 {[%emt 0:00:44]} Nf6 {[%emt 0:00:05]} 6. Nc3 {[%emt 0:00:12]} Nc6 {[%emt 0:00:22]} 7. Qd1 {[%emt 0:00:08]} Bg4 {[%emt 0:00:30]} 8. Be2 {[%emt 0:00:27]} h6 {[%emt 0:00:21]} 9. h3 {[%emt 0:00:04]} Be6 {[%emt 0:00:25]} 10. Bf4 {[%emt 0:00:07]} Qd7 {[%emt 0:00:23]} 11. Bb5 {[%emt 0:02:01]} a6 {[%emt 0:00:10]} 12. Ba4 {[%emt 0:00:15]} b5 {[%emt 0:02:35]} 13. Bb3 {[%emt 0:00:05]} b4 {[%emt 0:00:40]} 14. Ba4 {[%emt 0:00:41]} bxc3 {[%emt 0:01:32]} 15. Nd4 {[%emt 0:00:02]} O-O {[%emt 0:00:09]} 16. Bxc6 {[%emt 0:00:05]} Qc8 {[%emt 0:00:17]} 17. Nxe6 {[%emt 0:01:21]} fxe6 {[%emt 0:00:55]} 18. Bxa8 {[%emt 0:04:12]} cxb2 {[%emt 0:00:26]} 19. Rb1 {[%emt 0:00:02]} Qxa8 {[%emt 0:00:04]} 20. O-O {[%emt 0:01:06]} Nxe4 {[%emt 0:00:15]} 21. Qg4 {[%emt 0:00:12]} Bf6 {[%emt 0:04:04]} 22. Bxh6 {[%emt 0:02:00]} Qd5 {[%emt 0:00:41]} 23. Be3 {[%emt 0:01:08]} Rb8 {[%emt 0:00:46]} 24. Bc1 {[%emt 0:00:51]} Rb7 {[%emt 0:01:14]} 25. c4 {[%emt 0:01:09]} bxc1=Q {[%emt 0:00:50]} 26. Rbxc1 {[%emt 0:00:30]} Qf5 {[%emt 0:00:12]} 27. Qe2 {[%emt 0:00:12]} Bd4 {[%emt 0:00:56]} 28. Rcd1 {[%emt 0:00:34]} Rb2 {[%emt 0:00:23]} 29. Qg4 {[%emt 0:00:42]} Bxf2+ {[%emt 0:00:25]} 30. Kh1 {[%emt 0:00:28]} Qxg4 {[%emt 0:00:09]} 31. hxg4 {[%emt 0:00:04]} Ng3+ {[%emt 0:00:03]} 32. Kh2 {[%emt 0:00:04]} Nxf1+ {[%emt 0:00:03]} 33. Rxf1 {[%emt 0:00:01]} Rxa2 {[%emt 0:00:03]} 34. Rc1 {[%emt 0:00:06]} a5 {[%emt 0:00:09]} 35. g5 {[%emt 0:00:06]} Kh7 {[%emt 0:00:08]} 36. Kh3 {[%emt 0:00:03]} a4 {[%emt 0:00:04]} 37. Kg4 {[%emt 0:00:08]} a3 {[%emt 0:00:04]} 38. Kh5 {[%emt 0:00:24]} g6+ {[%emt 0:00:07]} 39. Kg4 {[%emt 0:00:03]} Rb2 {[%emt 0:00:07]} 40. Kf3 {[%emt 0:00:17]} a2 {[%emt 0:00:05]} 41. Rh1+ {[%emt 0:00:03]} Kg7 {[%emt 0:00:02]} 42. Rf1 {[%emt 0:00:30]} Rb1 {[%emt 0:00:32]} 43. Rxf2 {[%emt 0:00:03]} a1=Q {[%emt 0:00:02]} 44. c5 {[%emt 0:00:02]} Rb3+ {[%emt 0:00:05]} 45. Kg4 {[%emt 0:00:04]} Qd4+ {[%emt 0:00:19]} 46. Rf4 {[%emt 0:00:05]} Qd1+ {[%emt 0:00:06]} 47. Kh4 {[%emt 0:00:04]} Qh5# {[%emt 0:00:02]} 0-1

[Event "Asian Amateur Rapid Women 2024"]
[Site "Al Ain"]
[Date "2024.12.15"]
[Round "7.2"]
[White "Anoud Eisa Mohamed"]
[Black "Antonova, Nadezhda"]
[Result "1/2-1/2"]
[ECO "B15"]
[WhiteElo "1884"]
[BlackElo "1989"]
[Annotator "NA RC"]
[PlyCount "127"]
[EventDate "2024.12.15"]
[EventType "swiss"]
[EventCountry "UAE"]
[SourceTitle "playchess.com"]
[Source "ChessBase"]
[SourceQuality "1"]
[TimeControl "900+10"]

1. e4 {[%emt 0:00:03]} c6 {[%emt 0:00:02]} 2. d4 {[%emt 0:00:01]} d5 {[%emt 0:00:01]} 3. Nc3 {[%emt 0:00:01]} dxe4 {[%emt 0:00:02]} 4. Nxe4 {[%emt 0:00:02]} Nf6 {[%emt 0:00:01]} 5. Nxf6+ {[%emt 0:00:01]} exf6 {[%emt 0:00:01]} 6. c3 {[%emt 0:00:02]} Bd6 {[%emt 0:00:02]} 7. Bd3 {[%emt 0:00:01]} O-O {[%emt 0:00:02]} 8. Qc2 {[%emt 0:00:03]} Re8+ {[%emt 0:00:02]} 9. Ne2 {[%emt 0:00:01]} h5 {[%emt 0:00:04]} 10. O-O {[%emt 0:00:16]} h4 {[%emt 0:00:01]} 11. h3 {[%emt 0:00:01]} Nd7 {[%emt 0:00:12]} 12. Bf4 {[%emt 0:00:26]} Nf8 {[%emt 0:00:02]} 13. Bxd6 {[%emt 0:00:14]} Qxd6 {[%emt 0:00:01]} 14. Qd2 {[%emt 0:00:53]} g5 {[%emt 0:02:08]} 15. f4 {[%emt 0:00:30]} Qe7 {[%emt 0:00:29]} 16. fxg5 {[%emt 0:04:54]} Qe3+ {[%emt 0:00:09]} 17. Qxe3 {[%emt 0:00:03]} Rxe3 {[%emt 0:00:01]} 18. Bc4 {[%emt 0:00:08]} b5 {[%emt 0:00:40]} 19. Kf2 {[%emt 0:00:06]} Re8 {[%emt 0:00:32]} 20. Bb3 {[%emt 0:00:22]} fxg5 {[%emt 0:00:03]} 21. Rae1 {[%emt 0:00:12]} Be6 {[%emt 0:00:16]} 22. Ng1 {[%emt 0:00:57]} a5 {[%emt 0:02:02]} 23. Nf3 {[%emt 0:01:28]} Bxb3 {[%emt 0:00:28]} 24. axb3 {[%emt 0:00:02]} f6 {[%emt 0:00:03]} 25. Nd2 {[%emt 0:00:03]} Kg7 {[%emt 0:01:05]} 26. Ne4 {[%emt 0:00:08]} Ng6 {[%emt 0:00:23]} 27. Nd6 {[%emt 0:02:07]} Red8 {[%emt 0:01:59]} 28. Nf5+ {[%emt 0:00:12]} Kf7 {[%emt 0:00:28]} 29. Kg1 {[%emt 0:02:15]} Ra7 {[%emt 0:03:37]} 30. Re4 {[%emt 0:01:07]} a4 {[%emt 0:01:29]} 31. bxa4 {[%emt 0:00:11]} Rxa4 {[%emt 0:00:06]} 32. Rfe1 {[%emt 0:00:48]} Ra7 {[%emt 0:00:22]} 33. Re6 {[%emt 0:00:34]} Nf4 {[%emt 0:03:20]} 34. Rxc6 {[%emt 0:00:37]} Ra2 {[%emt 0:00:12]} 35. Nd6+ {[%emt 0:00:30]} Kg6 {[%emt 0:00:19]} 36. Ne8 {[%emt 0:00:34]} Rxe8 {[%emt 0:00:10]} 37. Rxe8 {[%emt 0:00:03]} Rxb2 {[%emt 0:00:00]} 38. Rf8 {[%emt 0:00:44]} Rxg2+ {[%emt 0:00:20]} 39. Kf1 {[%emt 0:00:06]} Rh2 {[%emt 0:00:10]} 40. Rfxf6+ {[%emt 0:00:18]} Kg7 {[%emt 0:00:01]} 41. Rf5 {[%emt 0:00:11]} Nxh3 {[%emt 0:00:05]} 42. Rxb5 {[%emt 0:00:14]} Rf2+ {[%emt 0:00:01]} 43. Ke1 {[%emt 0:00:03]} Rf7 {[%emt 0:00:14]} 44. Rbb6 {[%emt 0:00:10]} Nf4 {[%emt 0:00:07]} 45. Rb5 {[%emt 0:00:11]} Nh3 {[%emt 0:00:04]} 46. Rbb6 {[%emt 0:00:24]} Nf4 {[%emt 0:00:06]} 47. Rb5 {[%emt 0:00:01]} Nh3 {[%emt 0:00:05]} 48. d5 {[%emt 0:00:12]} g4 {[%emt 0:00:04]} 49. Rb4 {[%emt 0:00:08]} Nf4 {[%emt 0:00:40]} 50. Rcc4 {[%emt 0:00:36]} Nd3+ {[%emt 0:00:12]} 51. Ke2 {[%emt 0:00:01]} Nxb4 {[%emt 0:00:03]} 52. Rxb4 {[%emt 0:00:03]} Rd7 {[%emt 0:00:24]} 53. Rxg4+ {[%emt 0:00:02]} Kf6 {[%emt 0:00:01]} 54. c4 {[%emt 0:00:02]} Rh7 {[%emt 0:00:08]} 55. Rg2 {[%emt 0:00:40]} h3 {[%emt 0:00:03]} 56. Rh2 {[%emt 0:00:01]} Ke5 {[%emt 0:00:06]} 57. Ke3 {[%emt 0:00:08]} Ra7 {[%emt 0:00:02]} 58. Kf3 {[%emt 0:00:06]} Ra3+ {[%emt 0:00:11]} 59. Kg4 {[%emt 0:00:04]} Rc3 {[%emt 0:00:13]} 60. Re2+ {[%emt 0:00:03]} Kd6 {[%emt 0:00:18]} 61. Re6+ {[%emt 0:00:05]} Kd7 {[%emt 0:00:01]} 62. Rh6 {[%emt 0:00:21]} Rxc4+ {[%emt 0:00:05]} 63. Kxh3 {[%emt 0:00:03]} Rd4 {[%emt 0:00:02]} 64. d6 {[%emt 0:00:57]} 1/2-1/2

[Event "Asian Amateur Rapid Women 2024"]
[Site "Al Ain"]
[Date "2024.12.15"]
[Round "7.3"]
[White "Almaamari, Zainab Darwish"]
[Black "Ahlam Rashed"]
[Result "0-1"]
[ECO "C84"]
[WhiteElo "1751"]
[BlackElo "1987"]
[Annotator "NA RC"]
[PlyCount "88"]
[EventDate "2024.12.15"]
[EventType "swiss"]
[EventCountry "UAE"]
[SourceTitle "playchess.com"]
[Source "ChessBase"]
[SourceQuality "1"]
[TimeControl "900+10"]

1. e4 {[%emt 0:00:01]} e5 {[%emt 0:00:01]} 2. Nf3 {[%emt 0:00:01]} Nc6 {[%emt 0:00:01]} 3. Bb5 {[%emt 0:00:01]} a6 {[%emt 0:00:02]} 4. Ba4 {[%emt 0:00:01]} Nf6 {[%emt 0:00:01]} 5. O-O {[%emt 0:00:08]} Be7 {[%emt 0:00:02]} 6. d3 {[%emt 0:00:10]} b5 {[%emt 0:00:24]} 7. Bb3 {[%emt 0:00:01]} d6 {[%emt 0:00:03]} 8. a4 {[%emt 0:00:12]} b4 {[%emt 0:00:26]} 9. d4 {[%emt 0:00:39]} exd4 {[%emt 0:03:23]} 10. Nxd4 {[%emt 0:00:23]} Bb7 {[%emt 0:00:05]} 11. Nf5 {[%emt 0:03:12]} O-O {[%emt 0:00:31]} 12. f3 {[%emt 0:02:13]} Na5 {[%emt 0:01:44]} 13. Re1 {[%emt 0:01:27]} Nxb3 {[%emt 0:00:10]} 14. cxb3 {[%emt 0:00:01]} Qd7 {[%emt 0:00:47]} 15. Qd2 {[%emt 0:00:09]} d5 {[%emt 0:01:18]} 16. Qg5 {[%emt 0:00:18]} Bc5+ {[%emt 0:01:34]} 17. Kh1 {[%emt 0:01:00]} Ne8 {[%emt 0:00:04]} 18. Qg4 {[%emt 0:01:24]} Qe6 {[%emt 0:01:34]} 19. Bh6 {[%emt 0:01:08]} Qg6 {[%emt 0:00:09]} 20. Bg5 {[%emt 0:00:35]} f6 {[%emt 0:02:18]} 21. Be3 {[%emt 0:00:13]} Qxg4 {[%emt 0:00:09]} 22. fxg4 {[%emt 0:00:58]} Bxe3 {[%emt 0:00:03]} 23. Rxe3 {[%emt 0:00:12]} dxe4 {[%emt 0:00:04]} 24. Nd2 {[%emt 0:00:09]} g6 {[%emt 0:01:28]} 25. Nd4 {[%emt 0:00:06]} Nd6 {[%emt 0:00:18]} 26. Rc1 {[%emt 0:00:24]} Rf7 {[%emt 0:00:34]} 27. Rf1 {[%emt 0:00:37]} f5 {[%emt 0:00:23]} 28. gxf5 {[%emt 0:00:09]} gxf5 {[%emt 0:00:02]} 29. Rg3+ {[%emt 0:00:20]} Kh8 {[%emt 0:00:23]} 30. Rf4 {[%emt 0:00:41]} Rg8 {[%emt 0:00:13]} 31. Re3 {[%emt 0:01:01]} Rfg7 {[%emt 0:00:04]} 32. g3 {[%emt 0:00:15]} Rg4 {[%emt 0:00:32]} 33. Ne6 {[%emt 0:02:31]} Rxf4 {[%emt 0:00:22]} 34. Nxf4 {[%emt 0:00:00]} Rd8 {[%emt 0:00:03]} 35. Ne6 {[%emt 0:00:00]} Rd7 {[%emt 0:00:02]} 36. Nc5 {[%emt 0:00:00]} Rd8 {[%emt 0:00:24]} 37. Ne6 {[%emt 0:00:00]} Re8 {[%emt 0:00:33]} 38. Nc5 {[%emt 0:00:00]} Re5 {[%emt 0:00:32]} 39. Nxb7 {[%emt 0:00:31]} Nxb7 {[%emt 0:00:01]} 40. Nc4 {[%emt 0:00:01]} Rd5 {[%emt 0:00:04]} 41. Kg2 {[%emt 0:00:00]} Nc5 {[%emt 0:00:19]} 42. g4 {[%emt 0:00:11]} f4 {[%emt 0:00:04]} 43. Re1 {[%emt 0:00:15]} Rd4 {[%emt 0:00:19]} 44. Kf2 {[%emt 0:00:27]} Nd3+ {[%emt 0:00:14]} 0-1

[Event "Asian Amateur Rapid Women 2024"]
[Site "Al Ain"]
[Date "2024.12.15"]
[Round "7.4"]
[White "Sananda R"]
[Black "Prakash, Sadhana"]
[Result "1/2-1/2"]
[ECO "C54"]
[WhiteElo "1696"]
[BlackElo "1408"]
[Annotator "NA RC"]
[PlyCount "57"]
[EventDate "2024.12.15"]
[EventType "swiss"]
[EventCountry "UAE"]
[SourceTitle "playchess.com"]
[Source "ChessBase"]
[SourceQuality "1"]
[TimeControl "900+10"]

1. e4 {[%emt 0:00:02]} e5 {[%emt 0:00:01]} 2. Nf3 {[%emt 0:00:02]} Nc6 {[%emt 0:00:02]} 3. Bc4 {[%emt 0:00:01]} Bc5 {[%emt 0:00:03]} 4. c3 {[%emt 0:00:01]} Nf6 {[%emt 0:00:04]} 5. d3 {[%emt 0:00:02]} h6 {[%emt 0:00:06]} 6. b4 {[%emt 0:00:01]} Bb6 {[%emt 0:00:03]} 7. a4 {[%emt 0:00:08]} a6 {[%emt 0:00:03]} 8. Nbd2 {[%emt 0:00:13]} d6 {[%emt 0:00:04]} 9. h3 {[%emt 0:00:02]} Bd7 {[%emt 0:00:08]} 10. Nf1 {[%emt 0:00:05]} Qe7 {[%emt 0:00:15]} 11. Ng3 {[%emt 0:00:04]} g6 {[%emt 0:16:11]} 12. Bd2 {[%emt 0:01:06]} Be6 {[%emt 0:00:00]} 13. Bxe6 {[%emt 0:00:12]} Qxe6 {[%emt 0:00:00]} 14. c4 {[%emt 0:00:06]} Nd4 {[%emt 0:00:00]} 15. Be3 {[%emt 0:02:02]} c6 {[%emt 0:00:00]} 16. a5 {[%emt 0:02:01]} Ba7 {[%emt 0:00:00]} 17. Bxd4 {[%emt 0:00:07]} Bxd4 {[%emt 0:00:00]} 18. Nxd4 {[%emt 0:00:03]} exd4 {[%emt 0:00:00]} 19. O-O {[%emt 0:00:16]} O-O {[%emt 0:00:00]} 20. f4 {[%emt 0:00:05]} Kh7 {[%emt 0:00:00]} 21. Qd2 {[%emt 0:00:18]} Nd7 {[%emt 0:00:00]} 22. Qf2 {[%emt 0:02:14]} c5 {[%emt 0:00:00]} 23. bxc5 {[%emt 0:00:05]} dxc5 {[%emt 0:00:00]} 24. Rab1 {[%emt 0:00:04]} Qc6 {[%emt 0:00:00]} 25. Rb2 {[%emt 0:03:30]} Qc7 {[%emt 0:00:00]} 26. Rfb1 {[%emt 0:00:22]} Rab8 {[%emt 0:00:00]} 27. Qd2 {[%emt 0:00:04]} Rfe8 {[%emt 0:00:00]} 28. Rb3 {[%emt 0:02:01]} Re7 {[%emt 0:00:00]} 29. R3b2 {[%emt 0:01:44]} 1/2-1/2

[Event "Asian Amateur Rapid Women 2024"]
[Site "Al Ain"]
[Date "2024.12.15"]
[Round "7.5"]
[White "Joshi, Sindira"]
[Black "Smaraki, Mohanty"]
[Result "0-1"]
[ECO "B01"]
[WhiteElo "1735"]
[BlackElo "1745"]
[Annotator "NA RC"]
[PlyCount "110"]
[EventDate "2024.12.15"]
[EventType "swiss"]
[EventCountry "UAE"]
[SourceTitle "playchess.com"]
[Source "ChessBase"]
[SourceQuality "1"]
[TimeControl "900+10"]

1. e4 {[%emt 0:00:10]} d5 {[%emt 0:00:54]} 2. exd5 {[%emt 0:00:00]} Qxd5 {[%emt 0:00:01]} 3. Nc3 {[%emt 0:00:00]} Qa5 {[%emt 0:00:02]} 4. d4 {[%emt 0:00:00]} Nf6 {[%emt 0:00:01]} 5. Nf3 {[%emt 0:00:11]} Bf5 {[%emt 0:00:05]} 6. Bc4 {[%emt 0:00:28]} e6 {[%emt 0:00:05]} 7. O-O {[%emt 0:00:12]} c6 {[%emt 0:00:17]} 8. Re1 {[%emt 0:00:30]} Be7 {[%emt 0:00:29]} 9. Bd2 {[%emt 0:00:21]} Qc7 {[%emt 0:00:13]} 10. h3 {[%emt 0:01:16]} Nbd7 {[%emt 0:00:18]} 11. Ne5 {[%emt 0:00:41]} Nxe5 {[%emt 0:01:46]} 12. dxe5 {[%emt 0:00:09]} Nd7 {[%emt 0:00:03]} 13. Bf4 {[%emt 0:00:25]} g5 {[%emt 0:01:00]} 14. Bg3 {[%emt 0:00:25]} O-O-O {[%emt 0:00:17]} 15. Qe2 {[%emt 0:00:15]} h5 {[%emt 0:00:22]} 16. Ne4 {[%emt 0:00:50]} Bxe4 {[%emt 0:00:13]} 17. Qxe4 {[%emt 0:00:04]} Nb6 {[%emt 0:01:51]} 18. Bb3 {[%emt 0:00:20]} c5 {[%emt 0:00:30]} 19. c3 {[%emt 0:00:33]} c4 {[%emt 0:01:22]} 20. Bd1 {[%emt 0:00:16]} Rd2 {[%emt 0:01:24]} 21. Re2 {[%emt 0:01:01]} Rd5 {[%emt 0:00:45]} 22. Rc2 {[%emt 0:00:51]} h4 {[%emt 0:00:26]} 23. Bh2 {[%emt 0:00:10]} Bc5 {[%emt 0:02:09]} 24. Bf3 {[%emt 0:00:15]} Rhd8 {[%emt 0:00:16]} 25. Qe2 {[%emt 0:01:25]} R5d7 {[%emt 0:00:18]} 26. Kh1 {[%emt 0:00:41]} Kb8 {[%emt 0:01:19]} 27. Bg1 {[%emt 0:00:15]} Bf8 {[%emt 0:01:05]} 28. Re1 {[%emt 0:00:18]} Nd5 {[%emt 0:00:14]} 29. Bxd5 {[%emt 0:00:57]} Rxd5 {[%emt 0:00:02]} 30. Bh2 {[%emt 0:00:33]} Bg7 {[%emt 0:01:08]} 31. Qg4 {[%emt 0:00:37]} Bxe5 {[%emt 0:00:30]} 32. Bxe5 {[%emt 0:00:17]} Rxe5 {[%emt 0:00:01]} 33. Rxe5 {[%emt 0:00:57]} Qxe5 {[%emt 0:00:02]} 34. Qe2 {[%emt 0:00:23]} Qd5 {[%emt 0:00:17]} 35. Kg1 {[%emt 0:00:41]} Kc7 {[%emt 0:00:22]} 36. Kh1 {[%emt 0:00:54]} b5 {[%emt 0:00:20]} 37. a3 {[%emt 0:00:08]} a5 {[%emt 0:00:18]} 38. Kg1 {[%emt 0:00:08]} Kc6 {[%emt 0:00:03]} 39. f3 {[%emt 0:02:00]} Qd1+ {[%emt 0:00:21]} 40. Qxd1 {[%emt 0:00:04]} Rxd1+ {[%emt 0:00:01]} 41. Kf2 {[%emt 0:00:14]} Kc5 {[%emt 0:00:04]} 42. Ke2 {[%emt 0:00:10]} Rd5 {[%emt 0:00:07]} 43. Ke3 {[%emt 0:00:21]} b4 {[%emt 0:00:03]} 44. axb4+ {[%emt 0:00:15]} axb4 {[%emt 0:00:01]} 45. Rd2 {[%emt 0:00:28]} bxc3 {[%emt 0:00:27]} 46. bxc3 {[%emt 0:00:04]} Rxd2 {[%emt 0:00:10]} 47. Kxd2 {[%emt 0:00:03]} Kd5 {[%emt 0:00:05]} 48. Ke3 {[%emt 0:00:09]} e5 {[%emt 0:00:05]} 49. Kf2 {[%emt 0:00:16]} f5 {[%emt 0:00:10]} 50. g4 {[%emt 0:00:33]} f4 {[%emt 0:00:26]} 51. Ke2 {[%emt 0:00:07]} e4 {[%emt 0:00:05]} 52. Kf2 {[%emt 0:00:47]} e3+ {[%emt 0:00:29]} 53. Ke2 {[%emt 0:00:02]} Kc5 {[%emt 0:00:00]} 54. Kd1 {[%emt 0:00:03]} Kb5 {[%emt 0:00:01]} 55. Kc2 {[%emt 0:00:03]} Ka4 {[%emt 0:00:00]} 0-1

[Event "Asian Amateur Rapid Women 2024"]
[Site "Al Ain"]
[Date "2024.12.15"]
[Round "7.6"]
[White "Zhumabek, Nursaya"]
[Black "Olandag, Meghan Gabrielle"]
[Result "1-0"]
[ECO "E65"]
[WhiteElo "1448"]
[BlackElo "1479"]
[Annotator "NA RC"]
[PlyCount "63"]
[EventDate "2024.12.15"]
[EventType "swiss"]
[EventCountry "UAE"]
[SourceTitle "playchess.com"]
[Source "ChessBase"]
[SourceQuality "1"]
[TimeControl "900+10"]

1. Nf3 {[%emt 0:00:08]} Nf6 {[%emt 0:00:02]} 2. g3 {[%emt 0:00:01]} g6 {[%emt 0:00:03]} 3. Bg2 {[%emt 0:00:02]} Bg7 {[%emt 0:00:02]} 4. O-O {[%emt 0:00:02]} d6 {[%emt 0:00:01]} 5. d4 {[%emt 0:00:02]} O-O {[%emt 0:00:03]} 6. c4 {[%emt 0:00:02]} c5 {[%emt 0:00:16]} 7. Nc3 {[%emt 0:00:26]} Nbd7 {[%emt 0:00:32]} 8. e4 {[%emt 0:00:15]} Qc7 {[%emt 0:00:39]} 9. Nb5 {[%emt 0:00:42]} Qb6 {[%emt 0:00:18]} 10. a4 {[%emt 0:00:46]} a6 {[%emt 0:00:40]} 11. a5 {[%emt 0:00:05]} Qd8 {[%emt 0:00:11]} 12. Nc3 {[%emt 0:00:03]} b6 {[%emt 0:01:02]} 13. axb6 {[%emt 0:00:19]} Nxb6 {[%emt 0:00:09]} 14. dxc5 {[%emt 0:00:08]} dxc5 {[%emt 0:00:08]} 15. Nd2 {[%emt 0:00:30]} e5 {[%emt 0:00:48]} 16. Qc2 {[%emt 0:00:27]} Be6 {[%emt 0:00:42]} 17. Nd5 {[%emt 0:00:07]} Qd6 {[%emt 0:00:47]} 18. Nf3 {[%emt 0:00:28]} Bxd5 {[%emt 0:00:37]} 19. exd5 {[%emt 0:00:09]} Nfd7 {[%emt 0:00:34]} 20. Ng5 {[%emt 0:00:13]} h6 {[%emt 0:01:16]} 21. Ne4 {[%emt 0:00:02]} Qe7 {[%emt 0:00:49]} 22. Be3 {[%emt 0:00:23]} Rac8 {[%emt 0:01:11]} 23. Rxa6 {[%emt 0:00:28]} f5 {[%emt 0:00:07]} 24. Nxc5 {[%emt 0:01:05]} Nxc5 {[%emt 0:01:24]} 25. Rxb6 {[%emt 0:00:04]} Qa7 {[%emt 0:00:30]} 26. Bxc5 {[%emt 0:00:13]} Rxc5 {[%emt 0:00:10]} 27. Qb3 {[%emt 0:00:22]} Kh7 {[%emt 0:00:37]} 28. Rb7 {[%emt 0:00:07]} Qa8 {[%emt 0:00:16]} 29. d6 {[%emt 0:00:08]} Rf6 {[%emt 0:00:40]} 30. Rxg7+ {[%emt 0:00:06]} Kxg7 {[%emt 0:00:08]} 31. Bxa8 {[%emt 0:00:03]} Rxd6 {[%emt 0:00:08]} 32. Qb4 {[%emt 0:00:07]} 1-0

[Event "Asian Amateur Rapid Women 2024"]
[Site "Al Ain"]
[Date "2024.12.15"]
[Round "7.7"]
[White "Mera Abdulaziz Aidarous"]
[Black "Ahoud Eisa Mohamed"]
[Result "1-0"]
[ECO "C54"]
[WhiteElo "1584"]
[BlackElo "1553"]
[Annotator "NA RC"]
[PlyCount "57"]
[EventDate "2024.12.15"]
[EventType "swiss"]
[EventCountry "UAE"]
[SourceTitle "playchess.com"]
[Source "ChessBase"]
[SourceQuality "1"]
[TimeControl "900+10"]

1. e4 {[%emt 0:00:02]} e5 {[%emt 0:00:01]} 2. Nf3 {[%emt 0:00:01]} Nc6 {[%emt 0:00:01]} 3. Bc4 {[%emt 0:00:02]} Nf6 {[%emt 0:00:02]} 4. d3 {[%emt 0:00:02]} Bc5 {[%emt 0:00:09]} 5. c3 {[%emt 0:00:01]} d6 {[%emt 0:00:01]} 6. O-O {[%emt 0:00:02]} a6 {[%emt 0:00:01]} 7. b4 {[%emt 0:00:06]} Ba7 {[%emt 0:00:01]} 8. Nbd2 {[%emt 0:00:05]} h6 {[%emt 0:00:02]} 9. h3 {[%emt 0:00:01]} O-O {[%emt 0:00:03]} 10. Re1 {[%emt 0:00:02]} Re8 {[%emt 0:00:02]} 11. Nf1 {[%emt 0:00:01]} Be6 {[%emt 0:00:02]} 12. Bxe6 {[%emt 0:00:08]} Rxe6 {[%emt 0:00:01]} 13. Ng3 {[%emt 0:00:02]} d5 {[%emt 0:00:05]} 14. a4 {[%emt 0:00:57]} dxe4 {[%emt 0:00:08]} 15. dxe4 {[%emt 0:00:12]} b6 {[%emt 0:00:38]} 16. Be3 {[%emt 0:00:11]} Rd6 {[%emt 0:00:02]} 17. Qc2 {[%emt 0:00:03]} b5 {[%emt 0:00:03]} 18. axb5 {[%emt 0:00:28]} axb5 {[%emt 0:00:02]} 19. Bxa7 {[%emt 0:00:28]} Rxa7 {[%emt 0:00:02]} 20. Rxa7 {[%emt 0:00:05]} Nxa7 {[%emt 0:00:02]} 21. Nxe5 {[%emt 0:00:03]} Rd2 {[%emt 0:00:16]} 22. Qb3 {[%emt 0:00:14]} Qe7 {[%emt 0:00:17]} 23. Nf3 {[%emt 0:00:24]} Nc6 {[%emt 0:00:14]} 24. Nxd2 {[%emt 0:00:53]} Ne5 {[%emt 0:00:04]} 25. Qc2 {[%emt 0:00:20]} Qd6 {[%emt 0:00:02]} 26. Rd1 {[%emt 0:00:56]} Qc6 {[%emt 0:00:10]} 27. Nf3 {[%emt 0:00:20]} Nc4 {[%emt 0:00:12]} 28. Rd8+ {[%emt 0:00:20]} Ne8 {[%emt 0:00:02]} 29. Nd4 {[%emt 0:00:58]} 1-0